bitfinex/quotes_ETHUSD_20240924
["timestamp","ask_amount","ask_price","bid_price","bid_amount"]
[1727208304799,4.54796,2656.0,2655.5,3.76562]
[1727208305054,4.54796,2656.0,2655.5,7.53129]
[1727208305279,7.52976,2656.2,2655.7,3.76538]
[1727208305656,4.54752,2656.3,2655.8,3.76534]
[1727208306253,1.57811233,2656.4,2656.2,3.76468]
[1727208307065,1.57811233,2656.4,2656.2,7.52937]
[1727208307264,1.57811233,2656.4,2656.3,3.83991634]
[1727208307467,1.57811233,2656.4,2656.3,5.30688963]
[1727208307694,1.57811233,2656.4,2656.3,5.3821758]
[1727208307853,1.57811233,2656.4,2656.3,9.21367352]
[1727208308091,1.57811233,2656.4,2656.3,12.13839184]
[1727208310170,1.57811233,2656.4,2656.3,8.30688963]
[1727208310369,1.57811233,2656.4,2656.3,12.13839184]
[1727208311460,0.0383264,2656.5,2656.4,6.76449]
[1727208311664,0.0383264,2656.5,2656.4,7.88492503]
[1727208311897,0.0383264,2656.5,2656.4,4.88492503]
[1727208312108,0.0383264,2656.5,2656.4,4.96019698]
[1727208312263,0.0383264,2656.5,2656.4,4.88492503]
[1727208313977,0.0383264,2656.5,2656.4,1.12043503]
[1727208314429,0.0383264,2656.5,2656.1,3.76479]
[1727208315102,0.0383264,2656.5,2656.3,3.76459]
[1727208315479,0.0383264,2656.5,2656.4,3.8397761]
[1727208315966,0.0383264,2656.5,2656.4,4.54629]
[1727208316166,0.0383264,2656.5,2656.4,4.62155829]
[1727208316367,0.0383264,2656.5,2656.4,8.95101642]
[1727208316606,0.0383264,2656.5,2656.4,8.87574813]
[1727208318515,0.0383264,2656.5,2656.4,5.76805105]
[1727208319214,0.0383264,2657.3,2657.2,4.54515]
[1727208319417,0.0383264,2657.3,2657.2,8.82489061]
[1727208322198,0.0383264,2657.3,2657.2,11.82489061]
[1727208322508,0.0383264,2658.1,2658.0,3.76222]
[1727208322683,0.0383264,2658.1,2658.0,4.596406]
[1727208323191,0.7827,2659.3,2658.8,3.76109]
[1727208323501,0.7827,2659.3,2658.8,7.58631561]
[1727208324508,3.75981,2659.8,2658.8,8.17850927]
[1727208324807,4.5809164,2659.7,2658.8,8.17850927]
[1727208325130,3.75996,2659.6,2658.8,8.99570927]
[1727208325331,4.5809164,2659.7,2658.8,8.99570927]
[1727208325533,8.3408464,2659.7,2658.8,8.99570927]
[1727208325836,3.75998,2659.6,2658.8,8.99570927]
[1727208326138,4.5809164,2659.7,2658.7,3.76116]
[1727208326139,3.76038,2659.3,2658.7,3.76116]
[1727208326293,3.76038,2659.3,2658.5,8.40383561]
[1727208326619,3.76038,2659.3,2658.7,3.76115]
[1727208326825,0.8210264,2659.7,2658.8,3.83630058]
[1727208327029,3.75997,2659.6,2658.8,3.83630058]
[1727208327201,3.75827,2660.8,2658.7,3.0]
[1727208327397,1.0327,2660.7,2659.5,0.8172]
[1727208327636,1.0327,2660.7,2658.9,0.56780504]
[1727208327637,0.7827,2660.6,2659.1,4.57782]
[1727208327834,3.75928,2660.1,2659.1,0.8172]
[1727208327995,3.76027,2659.4,2658.6,4.57845]
[1727208328340,0.454297,2659.3,2658.6,4.57845]
[1727208328501,4.54289,2659.5,2658.6,4.57845]
[1727208328696,4.54289,2659.5,2658.7,3.7612]
[1727208329045,4.54289,2659.5,2658.3,4.579]
[1727208329046,3.76076,2659.1,2658.3,4.579]
[1727208329242,3.76076,2659.1,2658.1,7.58721561]
[1727208329243,3.76104,2658.9,2658.1,7.58721561]
[1727208329545,0.830294,2659.4,2657.6,4.139033]
[1727208329546,4.5443,2658.5,2657.7,4.57977]
[1727208329696,4.5443,2658.5,2657.7,5.0753353]
[1727208329905,0.7827,2658.5,2657.9,3.76235]
[1727208330455,0.7827,2658.5,2657.7,8.90056091]
[1727208330592,0.7827,2658.5,2657.8,3.7624]
[1727208330803,3.76177,2658.4,2657.5,3.76288]
[1727208331122,0.55,2658.4,2657.5,3.76288]
[1727208331333,0.55,2658.4,2657.7,3.76265]
[1727208331535,0.55,2658.4,2657.7,4.515203]
[1727208331924,0.55,2658.4,2657.8,0.084344]
[1727208332733,4.31178,2658.4,2657.8,0.084344]
[1727208332938,5.09506,2657.9,2657.8,0.084344]
[1727208333365,5.09506,2657.9,2656.9,0.0497224]
[1727208333366,0.7827,2657.3,2656.9,0.0497224]
[1727208333530,4.54601,2657.3,2656.9,0.0497224]
[1727208333730,0.55,2657.2,2657.0,0.06895338]
[1727208333950,0.55,2657.1,2657.0,0.06895338]
[1727208334127,4.54601,2657.3,2656.9,0.0497224]
[1727208334128,3.76364,2657.0,2656.9,0.0497224]
[1727208334316,4.31364,2657.0,2656.9,0.0497224]
[1727208335050,3.76364,2657.1,2656.9,0.0497224]
[1727208335248,3.76351,2657.1,2656.9,0.0497224]
[1727208335637,3.76364,2657.0,2656.9,0.0497224]
[1727208337469,4.31336,2657.2,2656.9,0.0497224]
[1727208338068,3.76352,2657.1,2656.9,0.0497224]
[1727208340240,4.822966,2657.2,2656.9,0.0497224]
[1727208340766,4.822966,2657.2,2657.0,0.06212598]
[1727208340972,4.31336,2657.2,2657.0,0.06212598]
[1727208341359,3.7827,2657.3,2657.0,0.06212598]
[1727208341673,2.0,2659.0,2656.9,0.0497224]
[1727208341674,6.76287,2657.6,2656.9,0.0497224]
[1727208341973,3.76308,2657.4,2657.1,0.06208383]
[1727208342163,3.76171,2658.4,2657.6,3.76268]
[1727208342509,4.216641,2658.4,2657.8,3.7624]
[1727208342634,3.76171,2658.4,2657.8,3.7624]
[1727208342834,3.76184,2658.3,2657.9,0.06199894]
[1727208343269,3.76171,2658.4,2657.9,0.06199894]
[1727208343476,3.76171,2658.4,2657.9,3.82433894]
[1727208343640,0.7876,2658.5,2658.0,3.76222]
[1727208343847,0.7876,2658.5,2658.0,3.82404844]
[1727208344492,0.7876,2658.5,2658.0,0.06182844]
[1727208344674,0.7876,2658.5,2658.0,3.89927658]
[1727208344862,0.7876,2658.5,2658.1,1.18768004]
[1727208345067,0.7876,2658.5,2658.1,1.24964514]
[1727208345254,3.76145,2658.6,2658.1,1.24964514]
[1727208345474,0.7876,2658.8,2658.3,3.82522561]
[1727208345788,7.38,2659.1,2658.5,3.76142]
[1727208345789,0.7876,2659.1,2658.5,3.76142]
[1727208346167,4.54837,2659.1,2658.6,0.06156206]
[1727208346378,3.76082,2659.0,2658.6,0.06156206]
[1727208346549,3.76082,2659.0,2658.4,0.89428084]
[1727208346750,3.76095,2658.9,2658.7,0.06136874]
[1727208346951,3.76095,2658.9,2658.4,0.89428084]
[1727208347164,3.76095,2658.9,2658.8,0.06132665]
[1727208347499,3.76095,2658.9,2658.3,0.5]
[1727208347500,3.76135,2658.7,2658.3,0.5]
[1727208347667,4.3116,2658.5,2658.4,0.06149503]
[1727208347857,5.09926,2658.4,2658.3,0.5]
[1727208348364,1.3376,2658.4,2658.3,0.5]
[1727208348568,4.31145,2658.6,2658.3,0.5]
[1727208349091,0.55,2658.6,2658.4,0.05941972]
[1727208349259,7.5488,2658.8,2658.4,0.05941972]
[1727208349458,3.76124,2658.7,2658.3,0.5]
[1727208349792,3.76124,2658.7,2658.4,0.05941972]
[1727208350588,7.52259,2658.7,2658.4,0.05941972]
[1727208350997,3.76124,2658.7,2658.4,0.05941972]
[1727208351326,3.76137,2658.6,2658.4,0.05941972]
[1727208351529,3.76124,2658.7,2658.4,0.05941972]
[1727208352823,3.0,2658.8,2658.4,0.05941972]
[1727208352995,0.55,2658.8,2658.4,0.54154069]
[1727208353390,3.76082,2659.0,2658.4,0.13465009]
[1727208353689,3.76066,2659.2,2658.4,0.13465009]
[1727208353690,0.55,2659.1,2658.5,3.76144]
[1727208353908,0.55,2659.1,2658.7,3.76123]
[1727208354154,4.31067,2659.1,2658.8,0.05925134]
[1727208354442,7.38,2659.5,2658.7,3.76114]
[1727208354599,3.75997,2659.6,2659.0,3.76072]
[1727208355043,0.7653,2659.7,2659.1,0.05878135]
[1727208355240,3.76035,2659.4,2659.1,0.05878135]
[1727208355443,3.76035,2659.4,2658.9,4.58261]
[1727208355444,3.76004,2659.6,2658.9,4.65778077]
[1727208355747,3.76004,2659.6,2659.2,0.05873927]
[1727208355916,3.76025,2659.4,2658.9,4.58257]
[1727208356104,3.76025,2659.4,2659.0,0.05882343]
[1727208356336,3.7604,2659.3,2659.0,0.05882343]
[1727208357037,3.76063,2659.2,2659.0,0.05882343]
[1727208357218,3.76063,2659.2,2658.6,4.58302]
[1727208357219,3.7606,2659.2,2658.6,4.58302]
[1727208357584,0.55,2659.1,2658.7,0.05882142]
[1727208357752,3.76099,2658.9,2658.7,0.05882142]
[1727208357954,3.76067,2659.1,2658.7,0.05882142]
[1727208358114,7.52142,2659.1,2658.5,3.76149]
[1727208358314,4.31067,2659.1,2659.0,0.5]
[1727208358581,4.31067,2659.1,2659.0,0.55870431]
[1727208358844,4.31067,2659.1,2659.0,0.5]
[1727208359251,5.07597,2659.1,2659.0,0.5]
[1727208359631,8.95962,2659.1,2659.0,0.55870431]
[1727208360336,8.95962,2659.1,2659.0,0.5]
[1727208360720,3.76049,2659.3,2659.0,0.5]
[1727208360952,3.55,2659.2,2659.1,0.05874928]
[1727208361248,5.31120612,2659.8,2659.3,3.7603]
[1727208361472,0.78613612,2659.7,2659.4,0.05864596]
[1727208361968,4.54604612,2659.7,2659.4,0.05864596]
[1727208362350,4.54604612,2659.7,2659.0,4.26072]
[1727208362351,3.75996,2659.6,2659.0,4.2607]
[1727208362524,3.75996,2659.6,2659.1,3.81918017]
[1727208362730,3.75996,2659.6,2659.1,0.05863017]
[1727208362957,0.78613612,2659.7,2659.3,4.48787184]
[1727208363154,0.78613612,2659.7,2659.4,0.07519812]
[1727208363374,0.78613612,2659.7,2659.6,4.58166]
[1727208363534,0.78613612,2659.7,2659.6,5.42919521]
[1727208363733,0.78613612,2659.7,2659.6,5.48737686]
[1727208364234,0.78613612,2659.7,2659.6,1.72741686]
[1727208364624,0.78613612,2659.7,2659.6,0.87988165]
[1727208365500,0.78613612,2659.7,2659.6,0.05818165]
[1727208365642,0.78613612,2659.7,2659.1,0.8217]
[1727208365849,4.54595612,2659.7,2659.2,0.05810729]
[1727208366433,0.78613612,2659.7,2659.3,8.24813184]
[1727208366632,0.78613612,2659.7,2659.4,0.88629923]
[1727208366868,1.17920418,2659.8,2659.4,0.88629923]
[1727208366869,3.75968,2659.8,2659.4,0.88629923]
[1727208367167,3.75968,2659.8,2659.4,0.05567532]
[1727208367366,0.55,2659.8,2659.4,0.05567532]
[1727208367538,0.55,2659.8,2659.3,3.76034]
[1727208367748,0.55,2659.8,2659.4,0.05567532]
[1727208367958,3.777,2660.2,2659.4,3.81589532]
[1727208368162,0.777,2660.5,2659.7,4.48787184]
[1727208368382,0.777,2660.5,2659.8,0.793]
[1727208368537,3.75897,2660.3,2659.8,0.84850707]
[1727208368928,0.777,2660.5,2659.8,1.30933478]
[1727208369238,3.9147049,2661.2,2659.9,0.07518565]
[1727208369239,4.53538,2660.8,2659.9,0.07518565]
[1727208369438,3.7675261,2660.6,2660.0,0.05541382]
[1727208369637,3.75873,2660.5,2660.0,0.05541382]
[1727208369941,3.75884,2660.4,2660.0,0.05541382]
[1727208370178,0.75263661,2660.4,2660.0,0.05541382]
[1727208370480,3.75942,2660.0,2659.5,0.793]
[1727208370984,3.75925,2660.1,2659.5,0.793]
[1727208371474,0.777,2660.2,2659.1,0.793]
[1727208371686,3.75923,2660.2,2659.5,3.75996]
[1727208371844,3.75948,2660.0,2659.4,3.76013]
[1727208372047,3.75948,2660.0,2659.5,3.7601]
[1727208372255,3.75912,2660.2,2659.6,3.75992]
[1727208372604,3.75912,2660.2,2659.4,3.76013]
[1727208372940,3.75912,2660.2,2659.1,5.28087184]
[1727208372941,0.55,2660.3,2659.7,0.793]
[1727208373145,3.75912,2660.2,2659.7,0.793]
[1727208373342,0.508585,2660.3,2659.8,3.75967]
[1727208373547,0.55,2660.5,2659.9,3.75943]
[1727208373783,0.55,2660.5,2659.8,3.75967]
[1727208373939,0.55,2660.5,2659.8,3.75959]
[1727208374141,0.55,2660.5,2659.7,0.793]
[1727208374142,3.75926,2660.1,2659.7,0.793]
[1727208374576,3.75893,2660.4,2659.8,3.75958]
[1727208374758,0.55,2660.5,2659.9,3.75944]
[1727208375144,4.30871,2660.5,2659.8,3.83476368]
[1727208375367,4.3087,2660.5,2659.9,3.75951]
[1727208376181,0.55,2660.5,2659.9,3.75951]
[1727208376393,0.55,2660.5,2659.9,4.214761]
[1727208376688,4.30872,2660.5,2659.9,4.214761]
[1727208376891,3.75914,2660.2,2659.7,0.793]
[1727208377090,0.55,2660.3,2659.7,8.31251]
[1727208377253,4.309,2660.3,2659.7,4.5527]
[1727208377451,3.75916,2660.2,2659.7,0.793]
[1727208378148,3.75916,2660.2,2659.5,3.76003]
[1727208378450,0.55,2660.3,2659.5,4.591366]
[1727208378684,4.309,2660.3,2659.5,4.591366]
[1727208378864,3.75919,2660.2,2659.6,3.75987]
[1727208379363,4.309,2660.3,2659.7,3.75974]
[1727208379566,3.75926,2660.1,2659.5,4.591426]
[1727208379797,4.53626,2660.1,2659.6,3.75994]
[1727208379998,3.75911,2660.2,2659.7,3.75981]
[1727208380152,4.30904,2660.3,2659.5,4.591426]
[1727208380153,3.7593,2660.1,2659.5,4.591316]
[1727208380555,4.30901,2660.3,2659.8,3.75961]
[1727208381094,0.55,2660.4,2659.9,3.7595]
[1727208381306,4.30892,2660.4,2659.7,7.65158483]
[1727208381507,0.0089661,2660.6,2660.1,3.75914]
[1727208381803,0.0089661,2660.6,2660.2,3.75902]
[1727208382027,0.0089661,2660.6,2660.3,3.75896]
[1727208382504,0.0089661,2660.6,2660.1,7.57585764]
[1727208382505,0.0089661,2660.6,2660.2,3.75911]
[1727208382666,0.0089661,2660.6,2660.2,8.35090312]
[1727208382861,0.0089661,2660.6,2660.2,8.27572576]
[1727208383090,0.0089661,2660.6,2660.2,4.51661576]
[1727208383694,0.0089661,2660.6,2660.1,3.81671764]
[1727208383858,0.0089661,2660.6,2659.5,3.76005]
[1727208383859,3.75948,2660.0,2659.6,0.793]
[1727208384301,3.75975,2659.8,2659.3,8.36999764]
[1727208384457,0.55,2659.9,2659.4,3.76024]
[1727208384662,4.30956,2659.9,2659.4,3.76024]
[1727208385117,0.55,2659.9,2659.4,3.76024]
[1727208385267,3.75948,2660.0,2659.5,3.76001]
[1727208385593,3.75939,2660.0,2659.6,0.04641168]
[1727208386403,3.7597,2659.8,2659.3,8.36998764]
[1727208386581,3.75939,2660.0,2659.7,0.04636962]
[1727208386775,3.75939,2660.0,2659.3,9.5830444]
[1727208386776,3.75962,2659.9,2659.3,13.3433544]
[1727208387284,3.75962,2659.9,2659.4,0.04649581]
[1727208387488,3.7601,2659.5,2659.4,0.04649581]
[1727208387699,0.55,2659.5,2659.0,1.793]
[1727208388000,4.31012,2659.5,2659.1,0.04504881]
[1727208388582,0.55,2659.8,2659.3,7.57696764]
[1727208388894,0.55,2659.8,2659.4,0.04193169]
[1727208389102,0.55,2659.7,2659.4,0.04193169]
[1727208389564,3.75944,2660.0,2659.5,4.553]
[1727208389770,0.55,2660.1,2659.5,4.553]
[1727208389967,4.30926,2660.1,2659.6,3.80178756]
[1727208390791,4.30926,2660.1,2659.6,0.04184756]
[1727208390987,3.75941,2660.0,2659.6,0.04184756]
[1727208391436,4.30929,2660.1,2659.6,0.5850409]
[1727208391730,3.75947,2660.0,2659.6,0.5850409]
[1727208391883,7.51896,2660.0,2659.6,0.04184756]
[1727208392182,3.75957,2659.9,2659.6,0.04184756]
[1727208392383,3.75947,2660.0,2659.6,0.04184756]
[1727208392794,3.75958,2659.9,2659.6,0.04184756]
[1727208393429,3.75971,2659.8,2659.6,0.04184756]
[1727208393735,3.75947,2660.0,2659.6,0.04184756]
[1727208394301,3.75964,2659.9,2659.6,0.04184756]
[1727208394505,3.75964,2659.9,2659.4,3.76017]
[1727208394734,3.75947,2660.0,2659.5,3.80219639]
[1727208394892,7.519,2660.0,2659.5,3.80219639]
[1727208395098,3.75964,2659.9,2659.5,0.04213639]
[1727208395341,0.55,2660.1,2659.6,3.75996]
[1727208395515,4.30931,2660.1,2659.7,0.04205683]
[1727208396330,0.55,2660.1,2659.7,0.04205683]
[1727208396736,3.75941,2660.0,2659.5,3.76002]
[1727208396936,3.75941,2660.0,2659.6,0.04205319]
[1727208397236,7.51889,2660.0,2659.6,0.04205319]
[1727208397397,7.5189,2660.0,2659.6,0.04205319]
[1727208397593,3.7596,2659.9,2659.6,0.04205319]
[1727208397798,1.59217407,2660.4,2659.9,3.75953]
[1727208398031,4.5688975,2660.4,2660.0,0.375953]
[1727208398239,4.5688975,2660.4,2659.9,3.75953]
[1727208398434,4.5688975,2660.4,2660.1,0.04184748]
[1727208398739,4.5688975,2660.4,2660.2,0.04180543]
[1727208398740,3.75897,2660.3,2660.2,0.04180543]
[1727208398906,4.5688975,2660.4,2659.8,0.7662]
[1727208399111,0.55,2660.3,2659.9,0.04193158]
[1727208399306,4.30903,2660.3,2659.9,0.04193158]
[1727208400437,0.55,2660.1,2659.9,0.04193158]
[1727208400608,4.30927,2660.1,2659.9,0.04193158]
[1727208400939,4.30927,2660.1,2659.7,0.7662]
[1727208401138,0.55,2660.1,2659.7,0.7662]
[1727208401373,0.55,2660.1,2659.8,0.04189138]
[1727208401636,0.55,2660.1,2659.7,4.52598]
[1727208401837,0.55,2660.2,2659.7,4.978599]
[1727208402042,0.55,2660.2,2659.8,0.04189138]
[1727208402242,4.30912,2660.2,2659.8,0.04189138]
[1727208402542,4.30912,2660.2,2659.7,4.52593]
[1727208402843,4.30912,2660.2,2659.8,0.04189138]
[1727208403341,5.09123657,2660.2,2659.9,0.04184932]
[1727208403501,5.09123657,2660.2,2659.7,4.52593]
[1727208403935,3.75926,2660.1,2659.8,0.04189138]
[1727208404198,4.54137657,2660.1,2659.7,0.7662]
[1727208404404,1.55631657,2659.9,2659.1,0.7662]
[1727208404644,3.76006,2659.6,2659.1,0.7662]
[1727208404850,3.76046,2659.3,2659.0,1.0]
[1727208405053,0.55,2659.1,2659.0,1.0]
[1727208405409,4.31062,2659.2,2659.0,1.0]
[1727208405606,5.09273657,2659.2,2659.0,1.0]
[1727208405809,8.85338657,2659.2,2659.0,1.0]
[1727208406007,5.09273657,2659.2,2659.0,1.0]
[1727208406305,4.09273657,2659.2,2659.0,1.0]
[1727208406713,3.76067,2659.1,2659.0,1.0]
[1727208406921,4.54601066,2659.1,2659.0,1.0]
[1727208407165,5.32021066,2659.1,2659.0,1.0]
[1727208407313,6.88444381,2659.1,2659.0,1.0]
[1727208407514,5.32021066,2659.1,2659.0,1.0]
[1727208407779,6.89708604,2659.1,2659.0,1.0]
[1727208408046,7.28903247,2659.1,2659.0,1.0]
[1727208408419,5.87021066,2659.1,2659.0,1.0]
[1727208408616,1.18196172,2659.1,2659.0,1.0]
[1727208408813,0.78795309,2659.1,2659.0,1.0]
[1727208409053,0.78795309,2659.2,2659.0,1.0]
[1727208409438,0.78795309,2659.5,2659.0,1.0]
[1727208409615,4.54814309,2659.5,2659.0,1.476102]
[1727208409812,3.76033,2659.4,2659.0,1.0]
[1727208410013,0.78795309,2659.3,2659.0,1.0]
[1727208410217,3.76061,2659.2,2659.0,1.0]
[1727208410413,3.76067,2659.1,2659.0,1.0]
[1727208411142,4.20363017,2659.1,2659.0,1.0]
[1727208411333,4.96323017,2659.1,2659.0,1.0]
[1727208411956,3.76061,2659.2,2659.0,1.0]
[1727208412257,4.54823309,2659.4,2659.0,1.0]
[1727208412548,4.54823309,2659.4,2658.9,0.8177]
[1727208412549,3.76028,2659.4,2658.9,0.8177]
[1727208412864,3.76058,2659.2,2658.9,0.8177]
[1727208413062,3.76028,2659.4,2658.7,3.76121]
[1727208413063,4.54823309,2659.4,2658.7,3.76121]
[1727208413351,3.76041,2659.3,2658.7,7.980171]
[1727208413555,3.76041,2659.3,2658.7,4.219021]
[1727208413959,3.76041,2659.3,2658.7,7.980161]
[1727208414146,3.76041,2659.3,2658.7,4.219021]
[1727208414355,3.76041,2659.3,2658.8,3.76107]
[1727208414725,0.78795309,2659.4,2658.9,3.76093]
[1727208414952,5.30759309,2659.6,2659.1,3.76065]
[1727208415151,4.54755309,2659.6,2659.1,3.76065]
[1727208415548,1.18196172,2659.7,2659.2,0.05575915]
[1727208415549,0.78795309,2659.7,2659.2,0.05575915]
[1727208415752,4.54750309,2659.9,2659.4,3.76022]
[1727208415964,4.54750309,2659.9,2659.5,0.05554879]
[1727208416455,0.78795309,2660.1,2659.7,3.75974]
[1727208416665,1.54755309,2660.2,2659.7,3.75974]
[1727208416822,5.30667309,2660.2,2659.8,0.06206719]
[1727208417027,0.78795309,2660.1,2659.7,3.75974]
[1727208417261,1.54755309,2660.2,2659.9,0.06198833]
[1727208417466,5.30668309,2660.2,2659.8,0.06206719]
[1727208417708,4.54730309,2660.1,2660.0,0.06190948]
[1727208417839,4.54730309,2660.1,2659.6,0.8177]
[1727208418276,4.54730309,2660.1,2659.6,4.57765]
[1727208418454,4.54730309,2660.1,2659.6,1.651466]
[1727208418455,0.78795309,2660.1,2659.6,1.651466]
[1727208418662,0.78795309,2660.2,2659.8,3.75967]
[1727208419749,4.54694309,2660.3,2659.8,3.75967]
[1727208420258,0.78795309,2660.2,2659.8,3.75967]
[1727208420461,4.54694309,2660.3,2659.8,3.75967]
[1727208421333,4.54694309,2660.3,2659.8,4.593397]
[1727208421334,0.78795309,2660.3,2659.8,4.593397]
[1727208421566,4.54694309,2660.3,2659.8,4.593327]
[1727208421782,4.97673922,2660.4,2660.2,4.57681]
[1727208421783,0.82381059,2660.4,2660.2,4.57681]
[1727208421931,0.0358575,2660.4,2660.3,3.75897]
[1727208422373,0.0358575,2660.4,2660.2,4.57674]
[1727208422772,0.0358575,2660.4,2660.2,8.33577]
[1727208422993,0.0358575,2660.4,2660.3,0.07517655]
[1727208423280,0.0358575,2660.4,2660.3,4.22415766]
[1727208424336,0.0358575,2660.4,2660.3,4.29932943]
[1727208424991,0.0358575,2660.4,2660.3,4.22415766]
[1727208425313,0.0358575,2660.4,2660.3,5.11702577]
[1727208425813,0.0358575,2660.4,2660.3,5.04185766]
[1727208426017,0.0358575,2660.4,2660.3,4.57667]
[1727208426419,0.0358575,2660.4,2660.3,0.8177]
[1727208427210,0.0358575,2660.4,2658.8,2.03634053]
[1727208427211,0.7888,2659.7,2659.1,1.5]
[1727208427422,3.76011,2659.5,2659.1,1.5]
[1727208427597,3.76047,2659.3,2659.1,1.5]
[1727208427780,3.76052,2659.2,2659.1,1.5]
[1727208428093,4.31052,2659.2,2659.1,1.5]
[1727208429323,4.31052,2659.2,2659.1,2.0]
[1727208431418,3.76005,2659.6,2659.1,2.8083]
[1727208431734,3.76015,2659.5,2659.1,2.0]
[1727208431893,3.76034,2659.4,2659.1,2.0]
[1727208432296,7.52069,2659.4,2659.1,2.0]
[1727208432496,7.52012,2659.6,2659.1,2.0]
[1727208432934,3.76015,2659.5,2659.1,2.0]
[1727208433140,3.76002,2659.6,2659.1,2.0]
[1727208433141,7.52007,2659.6,2659.1,2.0]
[1727208434041,3.75985,2659.7,2659.1,2.0]
[1727208434221,3.75998,2659.6,2659.1,2.0]
[1727208434747,7.52002,2659.6,2659.1,2.0]
[1727208435102,3.76014,2659.5,2659.1,2.0]
[1727208435911,3.76026,2659.4,2659.1,2.0]
[1727208436110,3.76052,2659.2,2659.1,2.0]
[1727208436820,3.76012,2659.5,2659.1,2.0]
[1727208439347,4.54865,2659.7,2659.1,2.0]
[1727208439348,0.55,2659.6,2659.1,2.0]
[1727208439554,0.55,2659.6,2659.1,2.576072]
[1727208439758,4.54865,2659.7,2659.1,6.336612]
[1727208439964,3.75982,2659.7,2659.2,3.76052]
[1727208443852,3.75997,2659.6,2659.2,3.76052]
[1727208444080,7.38,2660.1,2659.6,3.75994]
[1727208444285,3.7594,2660.0,2659.4,8.32863]
[1727208444483,3.7594,2660.0,2659.4,4.56844]
[1727208444684,3.7596,2659.9,2659.4,4.56844]
[1727208444916,3.7596,2659.9,2659.4,0.8083]
[1727208445505,3.75945,2660.0,2659.4,4.56842]
[1727208445683,3.75955,2659.9,2659.4,4.56842]
[1727208447115,3.75976,2659.8,2659.4,0.8083]
[1727208447432,3.75982,2659.7,2659.4,0.8083]
[1727208447602,3.75996,2659.6,2659.1,2.8083]
[1727208447783,3.75996,2659.6,2659.1,3.465203]
[1727208448430,3.75996,2659.6,2659.1,7.225863]
[1727208448602,3.75976,2659.8,2659.1,7.225863]
[1727208448790,3.75976,2659.8,2659.2,3.76039]
[1727208449527,3.75949,2660.0,2659.4,3.76021]
[1727208449825,3.7947275,2660.4,2659.9,3.75941]
[1727208450138,0.0358575,2660.4,2659.9,3.75941]
[1727208450617,0.0358575,2660.4,2660.0,0.8083]
[1727208450925,0.0358575,2660.4,2660.0,4.56767]
[1727208451095,3.75907,2660.3,2660.0,0.8083]
[1727208451286,3.75949,2660.0,2659.3,3.76036]
[1727208451488,3.75975,2659.8,2659.4,0.8083]
[1727208451730,2.124977,2660.3,2659.1,6.417483]
[1727208451731,3.75987,2659.7,2659.2,0.8083]
[1727208452026,4.136037,2659.6,2659.2,0.8083]
[1727208452200,3.76005,2659.6,2659.2,0.8083]
[1727208452409,4.54867,2659.7,2659.2,0.8083]
[1727208452727,4.54867,2659.7,2659.2,4.5688]
[1727208452901,8.30857,2659.7,2659.2,0.8083]
[1727208453105,4.54867,2659.7,2659.2,0.8083]
[1727208453599,4.54867,2659.7,2659.2,4.56876]
[1727208454314,4.54867,2659.7,2659.2,0.8083]
[1727208454624,3.76028,2659.4,2659.1,2.0]
[1727208454833,3.76025,2659.4,2659.1,2.0]
[1727208455368,0.55,2659.5,2659.1,2.0]
[1727208455492,4.31018,2659.5,2659.1,2.0]
[1727208456199,3.76038,2659.4,2659.1,2.0]
[1727208456404,3.76052,2659.2,2659.1,2.0]
[1727208457002,3.76038,2659.3,2659.1,2.0]
[1727208457811,3.76028,2659.4,2659.1,2.0]
[1727208458113,4.31004,2659.6,2659.1,5.76066]
[1727208458644,3.76025,2659.4,2659.1,2.0]
[1727208459923,3.76025,2659.4,2659.1,1.51]
[1727208460127,3.76038,2659.3,2659.1,1.51]
[1727208460444,0.752063,2659.2,2659.1,1.51]
[1727208460822,5.062583,2659.2,2659.1,1.51]
[1727208461023,0.752063,2659.2,2659.1,1.51]
[1727208461210,3.76022,2659.5,2659.1,1.51]
[1727208461415,5.8683617,2659.7,2659.1,1.51]
[1727208461811,3.76004,2659.6,2659.1,5.27065]
[1727208462521,3.76004,2659.6,2659.1,9.0313]
[1727208462726,3.76004,2659.6,2659.1,5.27065]
[1727208462727,3.75998,2659.6,2659.1,5.27065]
[1727208462925,4.72282017,2659.6,2659.1,5.27065]
[1727208463125,0.39360328,2659.5,2659.1,5.27065]
[1727208463807,4.15371328,2659.5,2659.1,5.27065]
[1727208464006,0.39360328,2659.5,2659.1,5.27059]
[1727208464207,0.39360328,2659.5,2659.2,4.52324]
[1727208464444,0.39360328,2659.5,2659.2,0.7628]
[1727208466967,0.39360328,2659.5,2659.4,4.52304]
[1727208467128,2.40134736,2660.4,2659.4,4.52304]
[1727208467129,0.786177,2660.3,2659.4,6.76024]
[1727208467336,0.0358575,2660.4,2660.2,3.75909]
[1727208467532,0.0358575,2660.4,2660.3,0.7628]
[1727208467839,0.0358575,2660.4,2659.6,4.24441807]
[1727208468136,3.75954,2659.9,2659.4,3.76019]
[1727208468339,3.75957,2659.9,2659.4,3.76016]
[1727208468526,0.786177,2660.2,2659.5,0.7628]
[1727208468715,1.18196172,2660.3,2660.1,4.52205]
[1727208468917,0.0358575,2660.4,2660.3,4.52177]
[1727208469150,0.0358575,2660.4,2660.3,5.16816386]
[1727208469349,0.0358575,2660.4,2660.3,4.52177]
[1727208472762,0.0358575,2660.4,2660.3,4.58627]
[1727208472967,0.0358575,2660.4,2660.3,5.67022017]
[1727208475056,0.0358575,2660.4,2660.3,4.58627]
[1727208475258,0.0358575,2660.4,2660.3,4.66143904]
[1727208475573,0.0358575,2660.4,2660.3,4.58627]
[1727208476123,0.0382613,2661.2,2660.3,4.58627]
[1727208476124,0.0382613,2661.2,2660.6,4.58585]